bitfinex-derivatives/quotes_SOLF0:USTF0_20250623
["timestamp","ask_amount","ask_price","bid_price","bid_amount"]
[1750696952887,79.18,132.25,132.16,26.94679402]
[1750696953585,101.36439402,132.25,132.16,2.3881]
[1750696953789,101.36439402,132.25,132.16,7.563]
[1750696953790,7.5619,132.19,132.16,7.563]
[1750696954191,79.18,132.25,132.15,2.4687]
[1750696954387,79.18,132.25,132.16,22.18439402]
[1750696955293,79.18,132.25,132.18,7.5616]
[1750696955702,2.4674,132.3,132.2,22.18439402]
[1750696955992,2.4674,132.3,132.16,79.2]
[1750696956197,79.2,132.31,132.22,22.18439402]
[1750696956597,79.2,132.31,132.24,22.18439402]
[1750696956797,7.5552,132.31,132.28,22.18439402]
[1750696957102,2.2997,132.35,132.28,22.18439402]
[1750696957288,86.7521,132.36,132.32,7.554]
[1750696957489,79.2,132.36,132.3,22.18439402]
[1750696957692,79.2,132.36,132.28,22.18439402]
[1750696957892,101.38439402,132.36,132.26,22.18439402]
[1750696958096,79.2,132.36,132.26,22.18439402]
[1750696958295,79.2,132.36,132.28,22.18439402]
[1750696958495,79.2,132.36,132.3,22.18439402]
[1750696958890,79.2,132.36,132.29,22.18439402]
[1750696959090,79.2,132.36,132.27,22.18439402]
[1750696959294,22.18439402,132.35,132.26,22.18439402]
[1750696959592,79.2,132.36,132.28,22.18439402]
[1750696959989,7.5533,132.34,132.3,7.555]
[1750696960289,79.2,132.36,132.27,22.18439402]
[1750696960488,22.18439402,132.34,132.25,22.18439402]
[1750696960698,22.18439402,132.34,132.23,22.18439402]
[1750696960893,7.5583,132.25,132.22,4.8939]
[1750696961104,22.18439402,132.28,132.19,22.18439402]
[1750696961300,22.18439402,132.28,132.17,24.58049402]
[1750696961490,22.18439402,132.26,132.17,24.58049402]
[1750696961695,22.18439402,132.26,132.17,2.3961]
[1750696961996,79.18,132.3,132.17,24.58049402]
[1750696962202,22.18439402,132.28,132.17,24.58049402]
[1750696962601,22.18439402,132.28,132.17,2.3961]
[1750696962799,22.18439402,132.26,132.17,2.3961]
[1750696963494,22.18439402,132.26,132.17,24.58049402]
[1750696963694,22.18439402,132.29,132.19,22.18439402]
[1750696964002,22.18439402,132.27,132.17,2.3961]
[1750696964196,22.18439402,132.25,132.17,2.3961]
[1750696964396,79.18,132.3,132.17,24.58049402]
[1750696964705,79.18,132.3,132.21,22.18439402]
[1750696965297,79.18,132.3,132.23,22.18439402]
[1750696965601,79.18,132.3,132.21,22.18439402]
[1750696965802,79.18,132.3,132.24,7.5584]
[1750696965803,7.5573,132.27,132.24,7.5584]
[1750696966196,79.18,132.3,132.21,22.18439402]
[1750696967106,7.5573,132.27,132.24,7.5584]
[1750696967402,79.18,132.3,132.21,22.18439402]
[1750696967604,79.18,132.3,132.17,2.3961]
[1750696967605,79.18,132.3,132.19,22.18439402]
[1750696967907,101.36439402,132.3,132.19,22.18439402]
[1750696968200,7.558,132.26,132.22,7.5593]
[1750696968401,101.36439402,132.3,132.19,22.18439402]
[1750696968598,22.18439402,132.28,132.19,22.18439402]
[1750696968802,7.5584,132.25,132.22,7.5598]
[1750696969101,22.18439402,132.28,132.17,24.58049402]
[1750696969601,101.36439402,132.3,132.19,22.18439402]
[1750696969796,22.18439402,132.28,132.19,22.18439402]
[1750696969994,22.18439402,132.26,132.17,24.58049402]
[1750696970198,7.5599,132.22,132.19,7.5613]
[1750696970399,22.18439402,132.26,132.17,2.3961]
[1750696970796,7.5607,132.21,132.18,7.5618]
[1750696971204,7.5617,132.19,132.17,2.3961]
[1750696971506,22.18439402,132.2,132.11,22.18439402]
[1750696971705,22.18439402,132.18,132.09,24.66679402]
[1750696971908,22.18439402,132.18,132.09,2.4824]
[1750696972299,101.36439402,132.18,132.09,2.4824]
[1750696972605,101.36439402,132.18,132.05,4.7906]
[1750696972606,22.18439402,132.14,132.05,4.7906]
[1750696972801,22.18439402,132.14,132.06,22.18439402]
[1750696973109,24.52979402,132.17,132.08,22.18439402]
[1750696973310,7.5655,132.12,132.09,7.567]
[1750696973808,7.567,132.1,132.07,7.5684]
[1750696974003,2.3454,132.17,132.05,2.4313]
[1750696974202,22.18439402,132.15,132.05,2.4313]
[1750696974414,22.18439402,132.15,132.06,22.18439402]
[1750696974602,22.18439402,132.16,132.06,22.18439402]
[1750696974799,2.3454,132.17,132.08,22.18439402]
[1750696977803,732.18,132.23,132.15,22.18439402]
[1750696978406,732.18,132.23,132.14,22.18439402]
[1750696979708,287.8642,132.29,132.19,22.18439402]
[1750696979907,5.94566881,132.28,132.19,22.18439402]
[1750696980308,77.12,132.29,132.23,22.18439402]
[1750696981215,77.1,132.34,132.27,22.18439402]
[1750696981611,7.5543,132.32,132.27,22.18439402]
[1750696981804,77.1,132.34,132.29,22.18439402]
[1750696982004,77.1,132.4,132.31,22.18439402]
[1750696982411,77.1,132.4,132.26,77.1]
[1750696982603,7.5511,132.38,132.34,7.5526]
[1750696982810,77.1,132.4,132.32,22.18439402]
[1750696983416,99.28439402,132.4,132.3,22.18439402]
[1750696983711,99.28439402,132.4,132.32,7.554]
[1750696984009,77.1,132.4,132.32,22.18439402]
[1750696984213,655.6139,132.44,132.26,77.1]
[1750696984214,655.6139,132.44,132.36,22.18439402]
[1750696984511,675.42439402,132.44,132.34,22.18439402]
[1750696984710,7.5482,132.43,132.39,7.5496]
[1750696984909,79.5677,132.45,132.4,22.18439402]
[1750696984910,77.08,132.45,132.4,22.18439402]
[1750696985318,238.28737879,132.49,132.33,77.08]
[1750696985614,238.28737879,132.49,132.41,22.18439402]
[1750696985819,99.26439402,132.5,132.43,22.18439402]
[1750696985820,77.08,132.5,132.43,22.18439402]
[1750696986120,77.08,132.5,132.45,22.18439402]
[1750696986322,77.08,132.5,132.39,99.26439402]
[1750696986621,77.08,132.5,132.46,22.18439402]
[1750696986926,652.98,132.53,132.46,22.18439402]
[1750696987423,652.98,132.53,132.4,7.2604]
[1750696987627,22.18439402,132.52,132.42,22.18439402]
[1750696987921,7.5483,132.43,132.37,22.18439402]
[1750696988116,99.22439402,132.47,132.37,22.18439402]
[1750696988517,99.22439402,132.47,132.35,4.5796]
[1750696988717,22.18439402,132.45,132.35,4.5796]
[1750696988914,77.04,132.47,132.35,4.5796]
[1750696988915,22.18439402,132.43,132.35,4.5796]
[1750696989225,22.18439402,132.45,132.36,22.18439402]
[1750696989420,7.5491,132.41,132.37,7.5509]
[1750696989621,4.6856,132.46,132.38,22.18439402]
[1750696989826,4.6856,132.46,132.34,2.288]
[1750696989827,77.04,132.47,132.35,77.04]
[1750696990013,7.5458,132.47,132.42,7.5481]
[1750696990219,24.51109402,132.51,132.42,7.5481]
[1750696990422,24.51109402,132.51,132.41,22.18439402]
[1750696990723,2.3267,132.51,132.41,22.18439402]
[1750696990926,22.18439402,132.48,132.37,22.18439402]
[1750696991122,22.18439402,132.48,132.39,22.18439402]
[1750696991325,2.3267,132.51,132.34,654.828]
[1750696991326,24.51109402,132.51,132.4,22.18439402]
[1750696991526,7.5456,132.48,132.43,7.5476]
[1750696991826,22.18439402,132.51,132.42,22.18439402]
[1750696992029,22.18439402,132.47,132.34,654.828]
[1750696992224,22.18439402,132.47,132.37,22.18439402]
[1750696992423,22.18439402,132.49,132.39,22.18439402]
[1750696992623,22.18439402,132.51,132.41,22.18439402]
[1750696992831,79.3457,132.52,132.41,22.18439402]
[1750696993224,2.2921,132.55,132.45,22.18439402]
[1750696993724,22.18439402,132.54,132.45,22.18439402]
[1750696993931,22.18439402,132.48,132.41,4.8417]
[1750696994227,77.0,132.5,132.41,4.8417]
[1750696994422,99.18439402,132.5,132.41,4.8417]
[1750696994622,22.18439402,132.48,132.41,4.8417]
[1750696994818,22.18439402,132.48,132.35,2.3788]
[1750696995020,22.18439402,132.42,132.32,77.0]
[1750696995419,22.18439402,132.4,132.32,77.0]
[1750696995820,22.18439402,132.4,132.34,7.5527]
[1750696996019,22.18439402,132.4,132.31,4.8431]
[1750696996020,22.18439402,132.38,132.31,4.8431]
[1750696996231,77.0,132.43,132.31,2.5295]
[1750696996430,7.5524,132.36,132.32,7.5539]
[1750696996640,22.18439402,132.34,132.25,22.18439402]
[1750696996831,7.5538,132.33,132.29,7.5556]
[1750696997038,22.18439402,132.35,132.25,22.18439402]
[1750696997335,22.18439402,132.35,132.24,7.1532]
[1750696997336,99.18439402,132.37,132.27,22.18439402]
[1750696997539,22.18439402,132.36,132.24,7.1532]
[1750696997838,7.5558,132.3,132.26,7.5576]
[1750696998126,7.5558,132.3,132.24,7.1532]
[1750696998127,22.18439402,132.33,132.24,7.1532]
[1750696998428,77.0,132.37,132.27,22.18439402]
[1750696998429,99.18439402,132.37,132.27,22.18439402]
[1750696998736,99.18439402,132.37,132.24,7.1532]
[1750696998737,22.18439402,132.33,132.24,7.1532]
[1750696998925,22.18439402,132.33,132.27,7.5567]
[1750696998926,7.5547,132.32,132.27,7.5567]
[1750696999127,22.18439402,132.33,132.24,7.1532]
[1750696999327,99.18439402,132.37,132.26,22.18439402]
[1750696999529,99.18439402,132.37,132.28,22.18439402]
[1750696999736,22.18439402,132.33,132.24,7.1532]
[1750696999926,7.5543,132.32,132.24,7.1532]
[1750697000235,99.18439402,132.37,132.27,22.18439402]
[1750697000439,7.5525,132.35,132.29,22.18439402]
[1750697000733,99.18439402,132.37,132.27,22.18439402]
[1750697000940,99.18439402,132.37,132.29,7.5557]
[1750697001130,22.18439402,132.35,132.27,22.18439402]
[1750697001330,77.0,132.37,132.27,22.18439402]
[1750697001533,7.5541,132.33,132.29,7.5558]
[1750697001845,99.18439402,132.37,132.27,22.18439402]
[1750697002038,7.554,132.33,132.29,7.5557]
[1750697002341,99.18439402,132.37,132.27,22.18439402]
[1750697002526,22.18439402,132.35,132.25,22.18439402]
[1750697002726,7.5538,132.33,132.29,7.5556]
[1750697003026,77.0,132.37,132.27,22.18439402]
[1750697003427,22.18439402,132.34,132.24,7.1532]
[1750697003630,7.5548,132.31,132.24,7.1532]
[1750697003834,22.18439402,132.34,132.25,22.18439402]
[1750697004338,22.18439402,132.34,132.27,7.5568]
[1750697004536,2.3054,132.38,132.31,22.18439402]
[1750697004734,7.5524,132.36,132.32,22.18439402]
[1750697004937,24.51739402,132.41,132.31,22.18439402]
[1750697005139,24.51739402,132.41,132.24,7.1532]
[1750697005140,7.5503,132.39,132.36,7.5516]
[1750697005431,2.333,132.41,132.24,7.1532]
[1750697005432,79.3352,132.43,132.35,22.18439402]
[1750697005836,7.5493,132.41,132.35,22.18439402]
[1750697006135,77.02,132.43,132.37,22.18439402]
[1750697006527,77.02,132.43,132.39,22.18439402]
[1750697006735,77.02,132.43,132.37,22.18439402]
[1750697007033,652.56,132.46,132.39,22.18439402]
[1750697007438,2.3152,132.47,132.39,22.18439402]
[1750697007839,77.02,132.48,132.41,22.18439402]
[1750697008240,77.02,132.48,132.43,22.18439402]
[1750697008740,99.20439402,132.48,132.4,22.18439402]
[1750697008929,99.20439402,132.48,132.35,77.02]
[1750697008930,77.02,132.48,132.37,22.18439402]
[1750697009133,22.18439402,132.47,132.35,77.02]
[1750697009337,22.18439402,132.45,132.35,99.20439402]
[1750697009537,22.18439402,132.45,132.35,22.18439402]
[1750697009947,99.20439402,132.48,132.37,22.18439402]
[1750697010145,77.02,132.48,132.37,22.18439402]
[1750697010346,7.5483,132.43,132.3,98.88439402]
[1750697010650,7.5483,132.43,132.38,22.18439402]
[1750697010850,77.02,132.48,132.38,22.18439402]
[1750697011047,22.18439402,132.47,132.3,98.88439402]
[1750697011247,22.18439402,132.47,132.36,22.18439402]
[1750697011754,22.18439402,132.47,132.38,7.5505]
[1750697011947,22.18439402,132.47,132.36,22.18439402]
[1750697012149,22.18439402,132.46,132.36,22.18439402]
[1750697012452,77.02,132.48,132.36,22.18439402]
[1750697012749,7.5488,132.42,132.38,7.5503]
[1750697013152,22.18439402,132.46,132.36,22.18439402]
[1750697013342,77.02,132.48,132.36,22.18439402]
[1750697013546,22.18439402,132.46,132.36,22.18439402]
[1750697013856,77.02,132.48,132.41,7.5491]
[1750697014457,22.18439402,132.47,132.38,22.18439402]
[1750697014954,22.18439402,132.47,132.32,4.7144]
[1750697014955,22.18439402,132.44,132.32,4.7144]
[1750697015254,22.18439402,132.42,132.32,4.7144]
[1750697015555,76.68,132.42,132.33,22.18439402]
[1750697015756,22.18439402,132.41,132.33,22.18439402]
[1750697016049,7.5524,132.36,132.33,7.5534]
[1750697016253,22.18439402,132.41,132.32,4.7144]
[1750697016455,22.18439402,132.38,132.29,22.18439402]
[1750697016644,22.18439402,132.38,132.27,76.68]
[1750697016645,22.18439402,132.38,132.27,98.86439402]
[1750697016955,26.95029402,132.4,132.29,22.18439402]
[1750697017353,22.18439402,132.38,132.28,22.18439402]
[1750697018054,7.5534,132.34,132.28,22.18439402]
[1750697018252,22.18439402,132.37,132.28,22.18439402]
[1750697018651,22.18439402,132.38,132.28,22.18439402]
[1750697018857,26.95029402,132.4,132.3,22.18439402]
[1750697019658,26.95029402,132.4,132.33,7.5537]
[1750697019861,26.95029402,132.4,132.3,22.18439402]
[1750697020259,26.95029402,132.4,132.29,22.18439402]
[1750697020557,22.18439402,132.38,132.29,22.18439402]
[1750697020746,22.18439402,132.38,132.27,98.86439402]
[1750697020945,4.7659,132.4,132.27,76.68]
[1750697021156,22.18439402,132.36,132.26,24.49979402]
[1750697021458,76.7,132.35,132.26,24.49979402]
[1750697021654,7.5534,132.34,132.31,7.5548]
[1750697021858,76.7,132.35,132.28,22.18439402]
[1750697022249,76.7,132.35,132.26,2.3154]
[1750697022453,76.7,132.35,132.25,26.86609402]
[1750697022759,7.554,132.33,132.29,7.5555]
[1750697022954,76.7,132.35,132.25,4.6817]
[1750697023155,76.7,132.35,132.26,22.18439402]
[1750697023656,76.7,132.35,132.3,22.18439402]
[1750697023961,81.4659,132.4,132.32,22.18439402]
[1750697024151,76.7,132.4,132.34,22.18439402]
[1750697024553,76.7,132.4,132.36,22.18439402]
[1750697024758,76.7,132.4,132.34,22.18439402]
[1750697024958,76.7,132.4,132.32,22.18439402]
[1750697025361,7.5511,132.38,132.34,7.5526]
[1750697025557,7.5511,132.38,132.32,22.18439402]
[1750697025959,76.7,132.4,132.34,22.18439402]
[1750697026263,654.5983,132.44,132.36,22.18439402]
[1750697026561,6.07853721,132.43,132.36,22.18439402]
[1750697026860,6.07853721,132.42,132.36,22.18439402]
[1750697027163,6.08144625,132.41,132.36,22.18439402]
[1750697027358,661.40101209,132.44,132.34,22.18439402]
[1750697027553,6.08424585,132.43,132.36,22.18439402]
[1750697027754,6.08424585,132.42,132.36,22.18439402]
[1750697027954,654.5983,132.44,132.36,22.18439402]
[1750697028154,6.08299709,132.43,132.31,4.9988]
[1750697028455,654.5983,132.44,132.36,22.18439402]
[1750697028652,6.08146701,132.43,132.36,22.18439402]
[1750697028854,6.08207419,132.44,132.33,76.7]
[1750697029161,6.08132927,132.43,132.35,22.18439402]
[1750697029361,98.88439402,132.45,132.35,22.18439402]
[1750697029651,6.0812309,132.44,132.34,2.4312]
[1750697029857,6.0812309,132.43,132.34,24.61559402]
[1750697030058,7.5499,132.4,132.36,7.5519]
[1750697030359,22.18439402,132.43,132.35,22.18439402]
[1750697030549,6.08999647,132.42,132.35,22.18439402]
[1750697030755,6.09126147,132.44,132.37,22.18439402]
[1750697030953,6.09126147,132.44,132.34,2.4312]
[1750697030954,76.7,132.45,132.39,22.18439402]
[1750697031370,6.80271209,132.49,132.41,22.18439402]
[1750697031563,6.09405998,132.48,132.41,22.18439402]
[1750697031863,76.7,132.5,132.41,22.18439402]
[1750697032059,6.09468484,132.49,132.43,22.18439402]
[1750697032256,76.7,132.5,132.43,22.18439402]
[1750697032454,6.09602294,132.49,132.43,22.18439402]
[1750697032758,76.7,132.5,132.4,4.7388]
[1750697032963,76.7,132.5,132.42,22.18439402]
[1750697033557,6.09472764,132.49,132.4,26.92319402]
[1750697033758,7.5477,132.44,132.41,7.549]
[1750697033958,6.09448713,132.48,132.4,26.92319402]
[1750697034264,6.09282741,132.48,132.4,34.47249402]
[1750697034465,28.27722143,132.47,132.38,22.18439402]
[1750697034652,6.09282741,132.46,132.38,22.18439402]
[1750697034858,9.57020135,132.49,132.36,98.86439402]
[1750697035057,22.18439402,132.45,132.36,76.68]
[1750697035356,7.5509,132.38,132.35,9.9925]
[1750697035561,82.77208436,132.44,132.34,2.4312]
[1750697035562,22.18439402,132.41,132.34,2.4312]
[1750697035761,22.18439402,132.41,132.32,22.18439402]
[1750697037070,7.5522,132.36,132.31,2.3932]
[1750697037454,22.18439402,132.41,132.31,2.3932]
[1750697037455,7.553,132.35,132.32,7.554]
[1750697037763,22.18439402,132.35,132.23,76.68]
[1750697038064,22.18439402,132.35,132.25,22.18439402]
[1750697038456,22.18439402,132.34,132.25,22.18439402]
[1750697038660,83.48271209,132.38,132.25,22.18439402]
[1750697038962,22.18439402,132.3,132.24,2.434]
[1750697039163,76.04,132.32,132.23,4.8734]
[1750697039369,22.18439402,132.3,132.23,4.8734]
[1750697039568,22.18439402,132.3,132.2,22.18439402]
[1750697039758,22.18439402,132.3,132.24,7.5588]
[1750697039958,22.18439402,132.3,132.2,22.18439402]
[1750697040162,22.18439402,132.3,132.22,7.5598]
[1750697040359,22.18439402,132.3,132.19,7.1871]
[1750697040565,76.04,132.32,132.21,22.18439402]
[1750697040868,98.22439402,132.32,132.24,7.5586]
[1750697041067,22.18439402,132.3,132.21,22.18439402]
[1750697041266,22.18439402,132.3,132.2,22.18439402]
[1750697041568,76.04,132.32,132.25,22.18439402]
[1750697041767,7.5521,132.36,132.29,22.18439402]
[1750697042068,652.18,132.41,132.33,22.18439402]
[1750697042266,83.6087,132.42,132.38,7.5508]
[1750697042468,22.18439402,132.44,132.35,22.18439402]
[1750697042673,78.3913,132.46,132.33,22.18439402]
[1750697042864,22.18439402,132.44,132.33,22.18439402]
[1750697043170,98.24439402,132.46,132.37,22.18439402]
[1750697043871,98.24439402,132.46,132.39,7.5502]
[1750697043872,7.5482,132.43,132.39,7.5502]
[1750697044068,7.5482,132.43,132.37,22.18439402]
[1750697044069,76.06,132.46,132.37,22.18439402]
[1750697044369,7.5496,132.4,132.38,2.4537]
[1750697044574,22.18439402,132.42,132.33,2.4537]
[1750697044765,76.06,132.46,132.33,2.4537]
[1750697044963,6.10015681,132.45,132.33,24.63809402]
[1750697045159,6.10015681,132.45,132.35,22.18439402]
[1750697045473,22.18439402,132.44,132.36,22.18439402]
[1750697045671,22.18439402,132.41,132.3,22.18439402]
[1750697045873,22.18439402,132.39,132.31,7.0933]
[1750697046673,22.18439402,132.37,132.31,7.0933]
[1750697046868,7.5565,132.29,132.24,470.45475699]
[1750697047165,22.18439402,132.33,132.25,2.3346]
[1750697047366,7.5572,132.27,132.25,2.3346]
[1750697047572,22.18439402,132.31,132.24,4.7587]
[1750697047770,22.18439402,132.29,132.19,2.3346]
[1750697047971,22.18439402,132.25,132.19,2.3346]
[1750697048270,22.18439402,132.21,132.09,13.82991383]
[1750697048460,7.5614,132.2,132.13,4.8585]
[1750697048663,22.18439402,132.21,132.13,4.8585]
[1750697049062,22.18439402,132.21,132.13,27.04289402]
[1750697049569,7.5619,132.19,132.15,7.5639]
[1750697049877,7.5619,132.19,132.13,27.04289402]
[1750697050070,7.5613,132.2,132.15,7.5635]
[1750697050277,22.18439402,132.21,132.13,4.8585]
[1750697050972,22.18439402,132.19,132.13,4.8585]
[1750697051167,98.26439402,132.2,132.13,4.8585]
[1750697051368,98.26439402,132.2,132.13,12.423]
[1750697051671,98.26439402,132.2,132.13,4.8585]
[1750697051877,76.08,132.2,132.13,4.8585]
[1750697052069,76.08,132.25,132.16,22.18439402]
[1750697052271,22.18439402,132.22,132.17,2.3454]
[1750697052581,76.08,132.25,132.13,4.8585]
[1750697052780,22.18439402,132.24,132.14,24.52979402]
[1750697052970,76.08,132.25,132.16,22.18439402]
[1750697053272,22.18439402,132.24,132.14,24.52979402]
[1750697053476,22.18439402,132.22,132.14,2.3454]
[1750697053871,7.5617,132.19,132.16,7.563]
[1750697054376,7.5605,132.21,132.14,2.3454]
[1750697054577,22.18439402,132.24,132.14,2.3454]
[1750697054878,22.18439402,132.22,132.14,2.3454]
[1750697055081,22.18439402,132.2,132.14,2.3454]
[1750697055282,22.18439402,132.18,132.09,2.4779]
[1750697055971,7.5635,132.16,132.09,2.4779]
[1750697056171,22.18439402,132.18,132.09,2.4779]
[1750697056367,76.1,132.19,132.1,22.18439402]
[1750697056675,76.1,132.19,132.14,7.5641]
[1750697056981,7.5636,132.16,132.12,7.5655]
[1750697057181,22.18439402,132.18,132.09,2.4779]
[1750697057974,22.18439402,132.18,132.1,22.18439402]
[1750697058277,29.74679402,132.18,132.1,22.18439402]
[1750697058482,22.18439402,132.18,132.1,22.18439402]
[1750697058675,29.74689402,132.18,132.1,22.18439402]
[1750697059072,7.5608,132.21,132.17,7.5624]
[1750697059274,22.18439402,132.22,132.09,2.4779]
[1750697059586,7.5603,132.22,132.18,7.5618]
[1750697059884,98.32439402,132.24,132.14,22.18439402]
[1750697060781,7.5605,132.21,132.17,7.5627]
[1750697060979,76.14,132.24,132.14,22.18439402]
[1750697061379,76.14,132.24,132.18,7.5618]
[1750697061577,76.14,132.24,132.14,22.18439402]
[1750697061887,7.5604,132.21,132.14,22.18439402]
[1750697062089,76.14,132.24,132.16,22.18439402]
[1750697062890,7.5593,132.23,132.16,22.18439402]
[1750697063387,76.14,132.24,132.15,22.18439402]
[1750697063778,7.5607,132.21,132.18,7.5617]
[1750697063987,76.14,132.24,132.15,22.18439402]
[1750697064284,76.14,132.24,132.13,4.8462]
[1750697064580,76.14,132.24,132.15,22.18439402]
[1750697064782,76.14,132.24,132.13,4.8462]
[1750697064981,7.5614,132.2,132.14,22.18439402]
[1750697065687,7.5614,132.2,132.17,7.5626]
[1750697065888,22.18439402,132.23,132.13,27.03059402]
[1750697066082,22.18439402,132.23,132.16,7.5633]
[1750697066276,22.18439402,132.23,132.13,27.03059402]
[1750697066486,22.18439402,132.21,132.13,2.3245]
[1750697066678,76.14,132.24,132.09,2.4779]
[1750697066679,22.18439402,132.19,132.09,24.66229402]
[1750697066883,76.14,132.18,132.09,24.66229402]
[1750697067084,76.14,132.18,132.09,2.4779]
[1750697067281,22.18439402,132.17,132.09,2.4779]
[1750697067486,22.18439402,132.15,132.06,2.4825]
[1750697067690,22.18439402,132.15,132.08,7.5675]
[1750697067987,22.18439402,132.15,132.06,2.4825]
[1750697068177,22.18439402,132.15,132.07,7.5678]
[1750697068380,22.18439402,132.15,132.06,2.4825]
[1750697068780,22.18439402,132.16,132.06,2.4825]
[1750697069277,76.14,132.18,132.09,22.18439402]
[1750697069585,76.14,132.18,132.11,22.18439402]
[1750697069974,76.14,132.18,132.15,7.5637]
[1750697070178,76.14,132.18,132.11,22.18439402]
[1750697070386,76.14,132.18,132.08,22.18439402]
[1750697070585,76.14,132.18,132.06,2.4825]
[1750697070787,76.14,132.18,132.08,22.18439402]
[1750697070977,76.14,132.18,132.11,7.5661]
[1750697071187,7.5647,132.14,132.11,7.5661]
[1750697071377,98.32439402,132.18,132.08,22.18439402]
[1750697071575,98.32439402,132.18,132.11,7.5657]
[1750697071780,98.32439402,132.18,132.08,22.18439402]
[1750697071981,76.14,132.18,132.1,22.18439402]
[1750697072186,7.5629,132.17,132.1,22.18439402]
[1750697072592,7.5629,132.17,132.11,2.3984]
[1750697072792,83.7026,132.18,132.11,2.3984]
[1750697073089,76.14,132.18,132.14,7.564]
[1750697073288,7.5637,132.16,132.11,2.3984]
[1750697073486,76.14,132.18,132.13,7.5649]
[1750697073682,76.14,132.18,132.11,2.3984]
[1750697074091,76.14,132.18,132.13,7.5649]
[1750697074393,22.18439402,132.17,132.06,24.66689402]
[1750697074592,76.14,132.18,132.06,24.66689402]
[1750697074789,76.14,132.18,132.08,22.18439402]
[1750697075091,76.14,132.18,132.14,7.5643]
[1750697075281,76.14,132.18,132.1,22.18439402]
[1750697075481,76.14,132.18,132.06,24.66689402]
[1750697075482,22.18439402,132.17,132.06,24.66689402]
[1750697075882,7.5656,132.12,132.06,24.66689402]
[1750697076086,22.18439402,132.17,132.06,24.66689402]
[1750697076291,22.18439402,132.17,132.1,7.5664]
[1750697076489,76.14,132.18,132.08,22.18439402]
[1750697076689,98.32439402,132.18,132.12,7.5655]
[1750697077083,7.5644,132.15,132.12,7.5655]
[1750697077892,7.5645,132.14,132.12,7.5655]
[1750697078195,76.14,132.18,132.08,22.18439402]
[1750697078393,7.5631,132.17,132.1,22.18439402]
[1750697078594,76.14,132.18,132.11,22.18439402]
[1750697078891,76.14,132.18,132.14,7.5641]
[1750697079096,7.5632,132.17,132.14,7.5641]
[1750697079289,76.14,132.18,132.13,7.5647]
[1750697079483,22.18439402,132.17,132.06,2.4825]
[1750697079679,7.5648,132.14,132.08,22.18439402]
[1750697079884,22.18439402,132.17,132.08,22.18439402]
[1750697080084,7.5656,132.12,132.08,22.18439402]
[1750697080282,22.18439402,132.17,132.08,22.18439402]
[1750697080690,7.5647,132.14,132.06,2.4825]
[1750697080890,22.18439402,132.17,132.08,22.18439402]
[1750697081493,7.5648,132.14,132.11,7.5657]
[1750697081790,22.18439402,132.17,132.08,22.18439402]
[1750697082396,76.14,132.18,132.08,22.18439402]
[1750697082692,76.14,132.18,132.1,22.18439402]
[1750697083099,76.14,132.18,132.11,2.4854]
[1750697083293,7.5629,132.17,132.14,7.5641]
[1750697083599,7.5629,132.17,132.11,2.4854]
[1750697083795,76.14,132.18,132.11,2.4854]
[1750697083997,653.2,132.21,132.14,22.18439402]
[1750697084297,653.2,132.21,132.13,22.18439402]
[1750697084494,22.18439402,132.2,132.12,2.4845]
[1750697084891,22.18439402,132.2,132.13,7.5647]
[1750697085199,22.18439402,132.2,132.1,22.18439402]
[1750697085392,7.5639,132.15,132.1,22.18439402]
[1750697085592,22.18439402,132.2,132.1,22.18439402]
[1750697085989,7.5636,132.16,132.13,7.5647]
[1750697086197,22.18439402,132.2,132.13,7.5647]
[1750697086600,7.5635,132.16,132.1,22.18439402]
[1750697086802,22.18439402,132.2,132.1,22.18439402]
[1750697087098,653.2,132.21,132.1,22.18439402]
[1750697087099,7.5631,132.17,132.1,22.18439402]
[1750697087291,675.38439402,132.21,132.15,7.5638]
[1750697087604,7.563,132.17,132.12,22.18439402]
[1750697087789,7.563,132.17,132.14,7.5641]
[1750697087988,675.38439402,132.21,132.12,22.18439402]
[1750697088188,77.496,132.23,132.18,7.5618]
[1750697088396,77.496,132.23,132.15,22.18439402]
[1750697088798,22.18439402,132.2,132.14,7.564]